bitfinex/quotes_BTCUSD_20230404
["timestamp","ask_amount","ask_price","bid_price","bid_amount"]
[1680573251634,0.7649322,27818.0,27816.0,0.12545085]
[1680573251847,0.290323,27817.0,27816.0,0.40233396]
[1680573252064,0.65366056,27817.0,27816.0,0.40251396]
[1680573252523,0.65366056,27817.0,27816.0,0.00018]
[1680573252763,0.77390661,27817.0,27814.0,0.08539252]
[1680573252977,0.1776,27815.0,27814.0,0.08539252]
[1680573253194,0.60609056,27815.0,27814.0,0.22016869]
[1680573253861,0.60609056,27815.0,27814.0,0.08645252]
[1680573253862,0.50559056,27815.0,27814.0,0.08645252]
[1680573254137,0.50559056,27815.0,27814.0,0.45498017]
[1680573254361,0.50559056,27815.0,27814.0,0.00118]
[1680573254582,0.50559056,27815.0,27814.0,0.36420799]
[1680573254811,0.50234556,27815.0,27814.0,0.00118]
[1680573255243,0.44031056,27815.0,27814.0,0.00118]
[1680573255471,0.44031056,27815.0,27814.0,0.46339938]
[1680573255920,0.44893856,27815.0,27814.0,0.46339938]
[1680573256138,0.44031056,27815.0,27814.0,0.46339938]
[1680573256347,0.43931056,27815.0,27814.0,0.46339938]
[1680573257229,0.008,27815.0,27814.0,0.08645252]
[1680573257456,0.008,27815.0,27814.0,0.61263465]
[1680573257689,0.008,27815.0,27814.0,0.54964313]
[1680573257968,0.008,27815.0,27814.0,0.72020037]
[1680573258206,0.008,27815.0,27814.0,0.54964313]
[1680573258448,0.008,27815.0,27814.0,0.88530791]
[1680573258683,0.03164828,27821.0,27814.0,0.77077435]
[1680573258895,0.02288,27821.0,27817.0,0.08564546]
[1680573259793,0.02388,27821.0,27817.0,0.27908546]
[1680573260030,0.02388,27821.0,27817.0,0.10664546]
[1680573260247,0.02388,27821.0,27817.0,0.27908546]
[1680573260501,0.02388,27821.0,27817.0,0.27914546]
[1680573260728,0.02388,27821.0,27818.0,0.41927919]
[1680573260948,0.02402228,27821.0,27818.0,0.41927919]
[1680573261380,0.02402228,27821.0,27818.0,0.37854398]
[1680573261600,0.02402228,27821.0,27817.0,0.23511365]
[1680573261875,0.02288,27821.0,27817.0,0.38655365]
[1680573262104,0.02388,27821.0,27818.0,0.015]
[1680573262782,0.02288,27821.0,27818.0,0.3520113]
[1680573263011,0.02402228,27821.0,27817.0,0.40755365]
[1680573263227,0.02288,27821.0,27817.0,0.38655365]
[1680573263435,0.02388,27821.0,27818.0,0.015]
[1680573264361,0.02288,27821.0,27817.0,0.38655365]
[1680573264580,0.02388,27821.0,27817.0,0.40755365]
[1680573265006,0.02488,27821.0,27818.0,0.015]
[1680573265230,0.02488,27821.0,27818.0,0.10064546]
[1680573265449,0.02502228,27821.0,27818.0,0.10064546]
[1680573265702,0.02302228,27821.0,27818.0,0.08564546]
[1680573265938,0.02288,27821.0,27819.0,0.39411481]
[1680573266629,0.02288,27821.0,27818.0,0.08564546]
[1680573266857,0.02288,27821.0,27819.0,0.27953946]
[1680573267093,0.02288,27821.0,27820.0,0.021249]
[1680573267330,0.02288,27821.0,27820.0,0.193689]
[1680573267594,0.02288,27821.0,27820.0,0.37933446]
[1680573267858,0.02388,27821.0,27820.0,0.37933446]
[1680573268143,0.02388,27821.0,27820.0,1.08934502]
[1680573268387,0.02388,27821.0,27820.0,1.54562305]
[1680573269563,0.02388,27821.0,27820.0,1.23272248]
[1680573270247,0.02388,27821.0,27820.0,1.10425429]
[1680573270691,0.02388,27821.0,27820.0,0.74954373]
[1680573273438,0.02388,27821.0,27820.0,1.37608166]
[1680573273654,0.02388,27821.0,27820.0,0.97796035]
[1680573273875,0.02388,27821.0,27820.0,0.84949216]
[1680573274093,0.02388,27821.0,27820.0,0.74949216]
[1680573275202,0.02388,27821.0,27820.0,0.87808035]
[1680573275414,0.02388,27821.0,27820.0,0.74961216]
[1680573276084,0.02388,27821.0,27820.0,0.89245835]
[1680573276318,0.0237822,27821.0,27820.0,1.20471489]
[1680573276593,0.0237822,27821.0,27820.0,1.20483489]
[1680573276849,0.0237822,27821.0,27820.0,1.20471489]
[1680573278298,0.0237822,27821.0,27820.0,0.89228906]
[1680573278521,0.0237822,27821.0,27820.0,0.76382087]
[1680573278746,0.0237822,27821.0,27820.0,0.89228906]
[1680573279693,0.0237822,27821.0,27820.0,1.24699962]
[1680573279935,0.0237822,27821.0,27820.0,1.83700353]
[1680573280639,0.0227822,27821.0,27820.0,1.82200353]
[1680573280878,0.0227822,27821.0,27820.0,1.85000353]
[1680573281100,0.0227822,27821.0,27820.0,1.92104814]
[1680573281316,0.0227822,27821.0,27820.0,1.93542614]
[1680573281542,0.0227822,27821.0,27820.0,1.85000353]
[1680573281765,0.0227822,27821.0,27820.0,1.82200353]
[1680573281992,0.0227822,27821.0,27820.0,1.77240353]
[1680573282208,0.0227822,27821.0,27820.0,1.74440353]
[1680573282440,0.0227822,27821.0,27820.0,1.4599539]
[1680573282663,0.0227822,27821.0,27820.0,1.5319539]
[1680573282884,0.0227822,27821.0,27820.0,1.77246072]
[1680573283095,0.0227822,27821.0,27820.0,1.4599476]
[1680573284298,0.0227822,27821.0,27820.0,1.33147941]
[1680573285068,0.0227822,27821.0,27820.0,1.33159941]
[1680573286141,0.0227822,27821.0,27820.0,1.33147941]
[1680573289700,0.0227822,27821.0,27820.0,1.33159941]
[1680573289937,0.0227822,27821.0,27820.0,1.33147941]
[1680573291803,0.0227822,27821.0,27820.0,1.33159941]
[1680573292827,0.0227822,27821.0,27820.0,1.33147941]
[1680573293193,0.0227822,27821.0,27820.0,1.4599476]
[1680573296461,0.0227822,27821.0,27820.0,1.4600676]
[1680573296594,0.02268334,27821.0,27820.0,1.4599476]
[1680573298640,0.02268334,27821.0,27820.0,1.94446929]
[1680573300631,0.02268334,27821.0,27820.0,1.8160011]
[1680573301497,0.02268334,27821.0,27820.0,1.94806125]
[1680573302618,0.02268334,27821.0,27820.0,1.81992208]
[1680573304868,0.02268334,27821.0,27820.0,1.8627448]
[1680573305096,0.02268334,27821.0,27820.0,2.03373522]
[1680573305303,0.02268334,27821.0,27820.0,2.03373506]
[1680573305533,0.02268334,27821.0,27820.0,1.48973526]
[1680573305787,0.02268334,27821.0,27820.0,1.93622675]
[1680573307354,0.02268334,27821.0,27820.0,1.48973526]
[1680573308040,0.02268334,27821.0,27820.0,1.82872578]
[1680573308446,0.02268334,27821.0,27820.0,1.84310378]
[1680573308715,0.02268334,27821.0,27820.0,1.82872578]
[1680573309375,0.02268334,27821.0,27820.0,1.84322378]
[1680573309607,0.02268334,27821.0,27820.0,1.27574162]
[1680573310017,0.02268334,27821.0,27820.0,1.27562162]
[1680573310599,0.02268334,27821.0,27820.0,1.63101904]
[1680573311318,0.02268334,27821.0,27820.0,1.55361904]
[1680573311666,0.02268334,27821.0,27820.0,1.19822162]
[1680573312074,0.02268334,27821.0,27820.0,1.60711821]
[1680573312564,0.02268334,27821.0,27820.0,1.19822162]
[1680573313303,0.02268334,27821.0,27820.0,1.62901916]
[1680573313540,0.02268334,27821.0,27820.0,1.62913916]
[1680573313785,0.02268334,27821.0,27820.0,1.64351716]
[1680573314029,0.02268334,27821.0,27820.0,1.21271962]
[1680573314236,0.02268334,27821.0,27820.0,1.19834162]
[1680573314474,0.02268334,27821.0,27820.0,1.19828162]
[1680573314684,0.02268334,27821.0,27820.0,1.59879854]
[1680573314929,0.02268334,27821.0,27820.0,1.22089854]
[1680573315158,0.02268334,27821.0,27820.0,0.42813262]
[1680573315418,0.03130934,27821.0,27820.0,0.81428608]
[1680573315657,0.03130934,27821.0,27820.0,0.60034884]
[1680573315902,0.03130934,27821.0,27820.0,0.60040884]
[1680573315903,0.3638226,27821.0,27820.0,0.60040884]
[1680573316151,0.3638226,27821.0,27820.0,0.60064884]
[1680573316401,0.36396488,27821.0,27820.0,0.60040884]
[1680573316908,0.36396488,27821.0,27820.0,0.57240884]
[1680573317147,0.36396488,27821.0,27820.0,0.59340884]
[1680573317359,0.36396488,27821.0,27820.0,0.57240884]
[1680573317570,0.36396488,27821.0,27820.0,0.58634884]
[1680573317777,0.36396488,27821.0,27820.0,0.57270884]
[1680573317995,0.36396488,27821.0,27820.0,0.59382884]
[1680573318235,0.36396488,27821.0,27820.0,0.71934107]
[1680573318443,0.36396488,27821.0,27820.0,0.69834107]
[1680573318652,0.36396488,27821.0,27820.0,0.56988884]
[1680573318858,0.36396488,27821.0,27820.0,0.71231459]
[1680573319721,0.36396488,27821.0,27820.0,0.71567459]
[1680573319961,0.36396488,27821.0,27820.0,0.71231459]
[1680573320327,0.36376605,27821.0,27820.0,0.71249459]
[1680573320525,0.36370605,27821.0,27820.0,0.71249459]
[1680573320972,0.02256679,27821.0,27820.0,0.54123837]
[1680573321184,0.02256679,27821.0,27820.0,0.54105837]
[1680573321403,0.09956679,27821.0,27820.0,0.54105837]
[1680573325353,0.09956679,27821.0,27820.0,0.54117837]
[1680573325582,0.09956679,27821.0,27820.0,0.09957731]
[1680573325583,0.97901141,27821.0,27820.0,0.09957731]
[1680573325848,1.01554369,27821.0,27820.0,0.014]
[1680573327588,1.01554369,27821.0,27820.0,0.015]
[1680573327807,0.038164,27820.0,27818.0,0.13966477]
[1680573328035,0.163327,27819.0,27818.0,0.13966477]
[1680573329133,0.16346928,27819.0,27818.0,0.13966477]
[1680573329354,0.16346928,27819.0,27818.0,0.06208746]
[1680573329569,0.163327,27819.0,27818.0,0.06208746]
[1680573330013,0.198502,27819.0,27818.0,0.05408746]
[1680573330240,0.16346928,27819.0,27818.0,0.05508746]
[1680573330461,0.200974,27819.0,27818.0,0.001]
[1680573330680,0.163327,27819.0,27818.0,0.001]
[1680573331172,0.1547,27819.0,27818.0,0.001]
[1680573331824,0.1547,27819.0,27818.0,0.08657731]
[1680573332045,0.163327,27819.0,27818.0,0.001]
[1680573332461,0.201745,27819.0,27818.0,0.001]
[1680573332691,0.038964,27818.0,27817.0,0.13901212]
[1680573332904,0.124791,27818.0,27817.0,0.13901212]
[1680573333116,0.085827,27818.0,27817.0,0.13901212]
[1680573333985,0.085827,27818.0,27817.0,0.14701212]
[1680573335755,0.0772,27818.0,27817.0,0.14701212]
[1680573337753,0.0772,27818.0,27817.0,0.54368676]
[1680573338117,0.0772,27818.0,27817.0,0.45810945]
[1680573342439,0.0772,27818.0,27817.0,0.45010945]
[1680573343473,0.0772,27818.0,27817.0,0.45110945]
[1680573344360,0.115992,27818.0,27817.0,0.45022945]
[1680573344527,0.115992,27818.0,27817.0,0.45122945]
[1680573344903,0.115992,27818.0,27817.0,0.45110945]
[1680573346486,0.0772,27818.0,27817.0,0.45104512]
[1680573346696,0.0772,27818.0,27817.0,0.45116512]
[1680573346930,0.0772,27818.0,27817.0,0.45104512]
[1680573347366,0.0772,27818.0,27817.0,0.07003493]
[1680573347632,0.07754228,27819.0,27818.0,0.022776]
[1680573347633,0.0774,27819.0,27818.0,0.022776]
[1680573350059,0.0804,27819.0,27818.0,0.022776]
[1680573350279,0.0804,27819.0,27818.0,0.19519802]
[1680573350537,0.0774,27819.0,27818.0,0.19519802]
[1680573350748,0.0774,27819.0,27818.0,0.20919802]
[1680573350985,0.0774,27819.0,27818.0,0.19519802]
[1680573351220,0.0774,27819.0,27818.0,0.20919802]
[1680573351488,0.1544,27819.0,27818.0,0.20919802]
[1680573351716,0.00014228,27820.0,27819.0,0.021334]
[1680573351938,0.09946679,27821.0,27819.0,0.021334]
[1680573352164,0.09960907,27821.0,27818.0,0.27199933]
[1680573352382,0.09960907,27821.0,27818.0,0.27649933]
[1680573352603,0.09960907,27821.0,27819.0,0.35803352]
[1680573352825,0.02270907,27821.0,27820.0,0.01527678]
[1680573353059,0.10000907,27821.0,27820.0,0.01527678]
[1680573353754,0.10000907,27821.0,27820.0,0.01627678]
[1680573355376,0.10000907,27821.0,27820.0,0.18315511]
[1680573356479,0.10000907,27821.0,27820.0,0.01527678]
[1680573356480,0.10863507,27821.0,27820.0,0.01527678]
[1680573356699,0.10863507,27821.0,27820.0,0.01627678]
[1680573357370,0.10863507,27821.0,27820.0,0.01527678]
[1680573357592,0.10863507,27821.0,27820.0,0.01627678]
[1680573358488,0.10863507,27821.0,27820.0,0.01527678]
[1680573358679,0.10863507,27821.0,27820.0,0.01627678]
[1680573359583,0.95298596,27821.0,27820.0,0.01627678]
[1680573359767,0.95336496,27821.0,27820.0,0.01627678]
[1680573360486,0.95336496,27821.0,27820.0,0.01527678]
[1680573361293,0.95636496,27821.0,27820.0,0.01527678]
[1680573361498,0.87606496,27821.0,27820.0,0.01527678]
[1680573361771,0.87606496,27821.0,27820.0,0.01727678]
[1680573361957,0.87906496,27821.0,27820.0,0.01727678]
[1680573362213,0.87606496,27821.0,27820.0,0.01527678]
[1680573362447,0.87906496,27821.0,27820.0,0.01527678]
[1680573363075,1.05906496,27821.0,27820.0,0.01527678]
[1680573363790,1.18248306,27821.0,27820.0,0.01527678]
[1680573364423,1.05906496,27821.0,27820.0,0.01527678]
[1680573364648,1.05606496,27821.0,27820.0,0.01527678]
[1680573364849,1.05906496,27821.0,27820.0,0.01627678]
[1680573365251,1.05606496,27821.0,27820.0,0.01527678]
[1680573365481,1.05906496,27821.0,27820.0,0.01527678]
[1680573365727,1.02222896,27821.0,27820.0,0.01527678]
[1680573366171,1.01922896,27821.0,27820.0,0.01527678]
[1680573366405,1.02222896,27821.0,27820.0,0.01527678]
[1680573366883,0.64604563,27821.0,27820.0,0.01527678]
[1680573367161,0.28246111,27821.0,27820.0,0.36659637]
[1680573367359,0.28246111,27821.0,27820.0,0.36677637]
[1680573367612,0.28129565,27821.0,27820.0,0.36677637]
[1680573368275,0.28129565,27821.0,27820.0,0.45235368]
[1680573370356,0.20429565,27821.0,27820.0,0.45235368]
[1680573370580,0.20429565,27821.0,27820.0,0.47366268]
[1680573371028,0.20429565,27821.0,27820.0,0.91356634]
[1680573371255,0.20129565,27821.0,27820.0,0.91356634]
[1680573371476,0.20129565,27821.0,27820.0,0.92156634]
[1680573371954,0.20129565,27821.0,27820.0,0.91356634]
[1680573372182,0.20129565,27821.0,27820.0,0.58884345]
[1680573372624,0.20129565,27821.0,27820.0,0.4604177]
[1680573373725,0.20129565,27821.0,27820.0,0.58884345]
[1680573374571,0.20129565,27821.0,27820.0,0.4604177]
[1680573375945,0.20129565,27821.0,27820.0,0.58884345]
[1680573376187,0.20129565,27821.0,27820.0,0.4604177]
[1680573376610,0.20129565,27821.0,27820.0,0.58884345]
[1680573376822,0.20129565,27821.0,27820.0,0.4604177]
[1680573377545,0.20129565,27821.0,27820.0,0.58884345]
[1680573377972,0.20129565,27821.0,27820.0,0.4604177]
[1680573378195,0.20129565,27821.0,27820.0,0.58884345]
[1680573382317,0.20129565,27821.0,27820.0,0.10909811]
[1680573382550,1.04960777,27821.0,27820.0,0.02345678]
[1680573382770,1.04960777,27821.0,27820.0,0.02327678]
[1680573382771,1.22674796,27821.0,27820.0,0.02327678]
[1680573383244,1.22674796,27821.0,27818.0,0.08582133]
[1680573383245,1.26305515,27821.0,27818.0,6e-05]
[1680573383481,0.19999313,27818.0,27815.0,0.00018]
[1680573383709,0.19999313,27818.0,27814.0,0.08582133]
[1680573383710,0.66531056,27816.0,27814.0,0.08582133]
[1680573383941,0.063844,27815.0,27814.0,0.08582133]
[1680573384164,0.42705456,27815.0,27814.0,0.08582133]
[1680573384390,0.47321112,27815.0,27814.0,0.08582133]
[1680573384883,0.47321112,27815.0,27814.0,0.08659674]
[1680573385340,0.78261112,27815.0,27814.0,0.08659674]
[1680573385565,0.78261112,27815.0,27814.0,0.00095541]
[1680573385797,0.78661112,27815.0,27814.0,0.00277541]
[1680573386023,0.74045456,27815.0,27814.0,0.00277541]
[1680573386703,0.73645456,27815.0,27814.0,0.00077541]
[1680573386944,0.74045456,27815.0,27814.0,0.00277541]
[1680573388587,0.58595456,27815.0,27814.0,0.00277541]
[1680573388856,0.93645064,27815.0,27814.0,0.00277541]
[1680573389150,1.05908103,27815.0,27814.0,0.00277541]
[1680573390515,1.25907416,27815.0,27814.0,0.00277541]
[1680573390774,0.90857808,27815.0,27814.0,0.00277541]
[1680573391009,1.06417808,27815.0,27814.0,0.00277541]
[1680573391239,1.53141238,27815.0,27814.0,0.00277541]
[1680573391690,1.53141238,27815.0,27814.0,0.00077541]
[1680573391691,1.52741238,27815.0,27814.0,0.00077541]
[1680573391914,1.66692808,27815.0,27814.0,0.001]
[1680573392139,2.07222647,27815.0,27814.0,0.001]
[1680573392430,1.66692808,27815.0,27814.0,0.001]
[1680573393133,2.04482808,27815.0,27814.0,0.001]
[1680573393371,2.20002808,27815.0,27814.0,0.001]
[1680573393607,2.38002808,27815.0,27814.0,0.001]
[1680573394277,2.38017036,27815.0,27814.0,0.001]
[1680573394749,0.19999313,27812.0,27811.0,0.000543]
[1680573395024,1.271768,27812.0,27811.0,0.000543]
[1680573395255,1.526968,27812.0,27811.0,0.000543]
[1680573395949,1.553968,27812.0,27811.0,0.001543]
[1680573396651,2.431868,27812.0,27811.0,0.001543]
[1680573396879,2.604488,27812.0,27811.0,0.001543]
[1680573397107,2.48510859,27812.0,27811.0,0.001543]
[1680573397585,2.64120859,27812.0,27811.0,0.001543]
[1680573397818,2.64120859,27812.0,27811.0,0.000543]
[1680573398289,2.61420859,27812.0,27811.0,0.000543]
[1680573398519,2.64120859,27812.0,27811.0,0.000543]
[1680573398743,2.61420859,27812.0,27811.0,0.000543]
[1680573398973,2.64120859,27812.0,27811.0,0.000543]
[1680573400415,3.03597412,27812.0,27811.0,0.000543]
[1680573400632,2.64120859,27812.0,27811.0,0.000543]
[1680573401104,2.61420859,27812.0,27811.0,0.000543]
[1680573401550,2.64120859,27812.0,27811.0,0.000543]
[1680573401767,2.61420859,27812.0,27811.0,0.000543]
[1680573402211,2.82099859,27812.0,27811.0,0.000543]
[1680573408058,2.82114087,27812.0,27811.0,0.000543]
[1680573408273,2.82099859,27812.0,27811.0,0.000543]
[1680573409776,2.82982702,27812.0,27811.0,0.000543]
[1680573411450,3.09693355,27812.0,27811.0,0.000543]
[1680573411683,1.86285424,27812.0,27811.0,0.000543]
[1680573412747,1.83585424,27812.0,27811.0,0.000543]
[1680573412955,1.86285424,27812.0,27811.0,0.000543]
[1680573413170,1.87135424,27812.0,27811.0,0.000543]
[1680573413374,1.87118301,27812.0,27811.0,0.000543]
[1680573413579,1.84377015,27812.0,27811.0,0.000543]
[1680573413786,1.84357636,27812.0,27811.0,0.000543]
[1680573414032,1.87035593,27812.0,27811.0,0.000543]
[1680573415462,3.16477339,27812.0,27811.0,0.000543]
[1680573416292,3.1115328,27812.0,27811.0,0.000543]
[1680573416506,1.81711534,27812.0,27811.0,0.000543]
[1680573416710,1.66131534,27812.0,27811.0,0.000543]
[1680573416928,0.95352099,27812.0,27811.0,0.000543]
[1680573417356,0.95352099,27812.0,27811.0,0.000723]
[1680573418017,0.92652099,27812.0,27811.0,0.000723]
[1680573418223,0.94502099,27812.0,27811.0,0.001723]
[1680573418441,0.86682099,27812.0,27811.0,0.001723]
[1680573419319,0.86682099,27812.0,27811.0,0.31826798]
[1680573419999,3.09793526,27812.0,27811.0,0.001723]
[1680573420224,3.09793526,27812.0,27803.0,0.116492]
[1680573420225,0.19899482,27807.0,27803.0,0.116492]
[1680573420482,0.19899482,27807.0,27803.0,0.116672]
[1680573420483,0.35471056,27805.0,27803.0,0.116672]
[1680573420714,0.61219166,27804.0,27803.0,0.02098]
[1680573420926,1.34410222,27804.0,27803.0,0.02098]
[1680573421152,1.20220541,27804.0,27803.0,0.02098]
[1680573421831,1.20220541,27804.0,27803.0,0.02317787]
[1680573422254,1.15200541,27804.0,27803.0,0.02317787]
[1680573422694,1.12500541,27804.0,27803.0,0.02317787]
[1680573422976,1.15200541,27804.0,27803.0,0.02317787]
[1680573423353,1.33316315,27804.0,27803.0,0.02317787]
[1680573423559,1.33316315,27804.0,27803.0,0.02299787]
[1680573423789,1.30616315,27804.0,27803.0,0.02299787]
[1680573423996,1.33316315,27804.0,27803.0,0.02299787]
[1680573424200,1.30616315,27804.0,27803.0,0.02299787]
[1680573424423,1.33316315,27804.0,27803.0,0.02299787]
[1680573425748,1.41906315,27804.0,27803.0,0.02299787]
[1680573427318,1.39206315,27804.0,27803.0,0.02299787]
[1680573427542,1.41906315,27804.0,27803.0,0.02299787]
[1680573428233,1.41887795,27804.0,27803.0,0.02305787]
[1680573428443,1.41887795,27804.0,27803.0,0.02299787]
[1680573429523,1.41902023,27804.0,27803.0,0.02299787]
[1680573430176,1.36369035,27804.0,27803.0,0.02299787]
[1680573430661,1.46369035,27804.0,27803.0,0.0208]
[1680573430867,1.51636838,27804.0,27803.0,0.0208]
[1680573431282,1.48936838,27804.0,27803.0,0.0208]
[1680573431496,1.51636838,27804.0,27803.0,0.0208]
[1680573432126,1.51651066,27804.0,27803.0,0.0208]
[1680573432964,1.69636838,27804.0,27803.0,0.0208]
[1680573435277,1.66936838,27804.0,27803.0,0.0208]
[1680573435488,1.69636838,27804.0,27803.0,0.0208]
[1680573436742,1.66936838,27804.0,27803.0,0.0208]
[1680573436947,1.69636838,27804.0,27803.0,0.0208]
[1680573437993,1.66936838,27804.0,27803.0,0.0208]
[1680573438442,1.69636838,27804.0,27803.0,0.0208]
[1680573439567,2.35827525,27804.0,27803.0,0.0208]
[1680573439786,4.10644251,27804.0,27803.0,0.0208]
[1680573440234,2.8115989,27804.0,27803.0,0.0208]
[1680573440447,4.10644195,27804.0,27803.0,0.0208]
[1680573440659,4.07944195,27804.0,27803.0,0.0208]
[1680573440887,4.10658423,27804.0,27803.0,0.0208]
[1680573441109,4.07958423,27804.0,27803.0,0.0208]
[1680573441328,4.10658423,27804.0,27803.0,0.0208]
[1680573441547,4.16538423,27804.0,27803.0,0.0208]
[1680573441769,4.37222423,27804.0,27803.0,0.0208]
[1680573441988,4.34522423,27804.0,27803.0,0.0208]
[1680573442204,4.37222423,27804.0,27803.0,0.0208]
[1680573442638,4.34522423,27804.0,27803.0,0.0208]
[1680573443089,3.05038118,27804.0,27803.0,0.0208]
[1680573443519,3.07738118,27804.0,27803.0,0.0208]
[1680573444155,3.05038118,27804.0,27803.0,0.0208]
[1680573444380,3.91888617,27804.0,27803.0,0.0208]
[1680573444834,4.51228014,27804.0,27803.0,0.0208]
[1680573445049,4.09150617,27804.0,27803.0,0.0208]
[1680573445263,4.51774059,27804.0,27803.0,0.0208]
[1680573446193,4.54474059,27804.0,27803.0,0.0208]
[1680573446644,4.51774059,27804.0,27803.0,0.0208]
[1680573446870,4.54474059,27804.0,27803.0,0.0208]
[1680573447091,4.51774059,27804.0,27803.0,0.0208]
[1680573447527,4.54474059,27804.0,27803.0,0.0208]
[1680573447744,4.09150617,27804.0,27803.0,0.0208]
[1680573447975,4.55565014,27804.0,27803.0,0.0208]
[1680573448194,4.09150617,27804.0,27803.0,0.0208]
[1680573448412,4.48003331,27804.0,27803.0,0.0208]
[1680573449293,4.45303331,27804.0,27803.0,0.0208]
[1680573449509,4.09150617,27804.0,27803.0,0.0208]
[1680573450153,4.06450617,27804.0,27803.0,0.0208]
[1680573450365,4.09150617,27804.0,27803.0,0.0208]
[1680573451251,4.09136389,27804.0,27803.0,0.02068596]
[1680573451902,4.06436389,27804.0,27803.0,0.02068596]
[1680573452133,4.09136389,27804.0,27803.0,0.02068596]
[1680573453709,4.53389988,27804.0,27803.0,0.02068596]
[1680573453919,4.50689988,27804.0,27803.0,0.02068596]
[1680573454126,4.06436389,27804.0,27803.0,0.02068596]
[1680573454344,4.41128355,27804.0,27803.0,0.02068596]
[1680573454553,4.06436389,27804.0,27803.0,0.02068596]
[1680573454778,4.09136389,27804.0,27803.0,0.02068596]
[1680573455222,4.26418683,27804.0,27803.0,0.02068596]
[1680573455450,2.79765097,27804.0,27803.0,0.02068596]
[1680573455672,2.78915097,27804.0,27803.0,0.02068596]
[1680573456330,2.76215097,27804.0,27803.0,0.02068596]
[1680573456551,2.78915097,27804.0,27803.0,0.02068596]
[1680573456768,3.11886271,27804.0,27803.0,0.02068596]
[1680573456989,3.12736271,27804.0,27803.0,0.02068596]
[1680573457418,3.10036271,27804.0,27803.0,0.02068596]
[1680573457635,3.12736271,27804.0,27803.0,0.02068596]
[1680573457848,3.10036271,27804.0,27803.0,0.02068596]
[1680573458066,3.12736271,27804.0,27803.0,0.02068596]
[1680573459436,2.24500803,27804.0,27803.0,0.02169114]
[1680573459666,1.89233,27804.0,27803.0,0.21630656]
[1680573459890,1.89233,27804.0,27803.0,0.21648656]
[1680573460337,1.89233,27804.0,27803.0,0.01687114]
[1680573460559,1.91933,27804.0,27803.0,0.01669114]
[1680573460773,1.92783,27804.0,27803.0,0.01669114]
[1680573461197,2.20083,27804.0,27803.0,0.01669114]
[1680573461419,2.22783,27804.0,27803.0,0.01669114]
[1680573462306,2.20083,27804.0,27803.0,0.01669114]
[1680573462523,2.22783,27804.0,27803.0,0.01669114]
[1680573464086,2.04783,27804.0,27803.0,0.01669114]
[1680573464308,2.41359396,27804.0,27803.0,0.01669114]
[1680573464529,2.4593858,27804.0,27803.0,0.01669114]
[1680573464751,2.45952808,27804.0,27803.0,0.01669114]
[1680573464982,2.4593858,27804.0,27803.0,0.01669114]
[1680573466814,2.17972184,27804.0,27803.0,0.01669114]
[1680573467489,2.55762184,27804.0,27803.0,0.01568596]
[1680573467961,3.0725583,27804.0,27803.0,0.01568596]
[1680573468181,3.25619995,27804.0,27803.0,0.01568596]
[1680573468406,3.43605995,27804.0,27803.0,0.01568596]
[1680573468628,3.6286159,27804.0,27803.0,0.01568596]
[1680573469351,3.7635259,27804.0,27803.0,0.01568596]
[1680573469571,3.5836859,27804.0,27803.0,0.01568596]
[1680573469795,3.6106859,27804.0,27803.0,0.01568596]
[1680573470016,3.5836859,27804.0,27803.0,0.01568596]
[1680573470240,3.6106859,27804.0,27803.0,0.01568596]
[1680573471336,3.61082818,27804.0,27803.0,0.01568596]
[1680573472010,3.6106859,27804.0,27803.0,0.01568596]
[1680573472919,3.2327859,27804.0,27803.0,0.01568596]
[1680573473141,2.4996576,27804.0,27803.0,0.01568596]
[1680573473578,2.03933,27804.0,27803.0,0.01568596]
[1680573473814,2.03947228,27804.0,27803.0,0.01568596]
[1680573474479,2.03933,27804.0,27803.0,0.01568596]
[1680573474918,2.22783,27804.0,27803.0,0.01568596]
[1680573475350,2.53094907,27804.0,27803.0,0.01568596]
[1680573476429,2.89673022,27804.0,27803.0,0.01568596]
[1680573479352,2.89673022,27804.0,27803.0,0.01568596]
[1680573480001,2.98302338,27804.0,27803.0,0.01568596]
[1680573482674,2.98302338,27804.0,27803.0,0.01561823]
[1680573485625,2.61724223,27804.0,27803.0,0.01561823]
[1680573486722,3.01431254,27804.0,27803.0,0.01561823]
[1680573486955,2.92801938,27804.0,27803.0,0.01561823]
[1680573487169,3.09201254,27804.0,27803.0,0.01561823]
[1680573488767,3.27184254,27804.0,27803.0,0.01561823]
[1680573489205,3.09201254,27804.0,27803.0,0.01561823]
[1680573489433,3.27184254,27804.0,27803.0,0.01561823]
[1680573490106,3.09201254,27804.0,27803.0,0.01561823]
[1680573495197,3.22134047,27804.0,27803.0,0.01561823]
[1680573497120,3.22148275,27804.0,27803.0,0.01561823]
[1680573497346,3.22134047,27804.0,27803.0,0.01561823]
[1680573497988,3.13504731,27804.0,27803.0,0.01561823]
[1680573499744,3.22128671,27804.0,27803.0,0.01561823]
[1680573499997,3.13504731,27804.0,27803.0,0.01561823]
[1680573501070,3.22129532,27804.0,27803.0,0.01561823]
[1680573501288,3.13504731,27804.0,27803.0,0.01561823]
[1680573501722,2.737977,27804.0,27803.0,0.01561823]
[1680573502176,3.1666203,27804.0,27803.0,0.01561823]
[1680573503307,3.3464603,27804.0,27803.0,0.01561823]
[1680573503546,3.76746961,27804.0,27803.0,0.01561823]
[1680573504034,3.79339704,27804.0,27803.0,0.01561823]
[1680573504253,3.76746961,27804.0,27803.0,0.01561823]
[1680573504489,3.76747961,27804.0,27803.0,0.01561823]
[1680573504933,3.7934064,27804.0,27803.0,0.01561823]
[1680573505411,4.12917335,27804.0,27803.0,0.01561823]
[1680573505635,3.76747961,27804.0,27803.0,0.01561823]
[1680573505857,3.89685518,27804.0,27803.0,0.01561823]
[1680573506659,3.89685518,27804.0,27803.0,0.01552341]
[1680573507245,4.10498685,27804.0,27803.0,0.01552341]
[1680573507688,3.76747961,27804.0,27803.0,0.01552341]
[1680573508338,4.34283903,27804.0,27803.0,0.01552341]
[1680573508720,4.12259871,27804.0,27803.0,0.01552341]
[1680573509463,4.12258871,27804.0,27803.0,0.01552341]
[1680573509949,3.79337025,27804.0,27803.0,0.01552341]
[1680573511065,4.19986684,27804.0,27803.0,0.01552341]
[1680573511464,3.84516961,27804.0,27803.0,0.01552341]
[1680573511673,3.8710687,27804.0,27803.0,0.01552341]
[1680573511875,3.97456596,27804.0,27803.0,0.01552341]
[1680573512119,3.87107008,27804.0,27803.0,0.01552341]
[1680573512548,4.22073103,27804.0,27803.0,0.01552341]
[1680573513428,4.19483056,27804.0,27803.0,0.01552341]
[1680573513844,4.19482056,27804.0,27803.0,0.01552341]
[1680573514048,4.22069665,27804.0,27803.0,0.01552341]
[1680573514458,4.04086665,27804.0,27803.0,0.01552341]
[1680573515948,2.93120428,27804.0,27803.0,0.01552341]
[1680573516201,2.90532819,27804.0,27803.0,0.01552341]
[1680573516393,3.03474762,27804.0,27803.0,0.01552341]